bitfinex/quotes_BTCUSD_20251217
["timestamp","ask_amount","ask_price","bid_price","bid_amount"]
[1765972537494,0.30246744,87158.0,87157.0,0.00072362]
[1765972542840,0.35102744,87158.0,87157.0,0.00072362]
[1765972543039,0.41984744,87158.0,87157.0,0.00072362]
[1765972543389,0.35102744,87158.0,87157.0,0.00072362]
[1765972543796,0.30246744,87158.0,87157.0,0.00072362]
[1765972548699,0.30247973,87158.0,87157.0,0.00072362]
[1765972551374,0.30247973,87158.0,87157.0,0.07270362]
[1765972551576,0.30247973,87158.0,87157.0,0.00072362]
[1765972555547,0.001,87158.0,87157.0,0.12182362]
[1765972555746,0.001,87158.0,87157.0,0.25977317]
[1765972555949,0.001,87158.0,87157.0,0.23682608]
[1765972558259,0.001,87158.0,87157.0,0.01892362]
[1765972558770,0.001,87158.0,87157.0,0.14002362]
[1765972560142,0.001,87158.0,87157.0,0.01888362]
[1765972560346,0.001,87158.0,87157.0,0.00072362]
[1765972565882,0.001,87158.0,87157.0,0.11146362]
[1765972566903,0.001,87158.0,87157.0,0.03654362]
[1765972567106,0.001,87158.0,87157.0,0.00072362]
[1765972568919,0.001,87158.0,87157.0,0.11146362]
[1765972569116,0.001,87158.0,87157.0,0.03654362]
[1765972570175,0.001,87158.0,87157.0,0.15877362]
[1765972570515,0.001,87158.0,87157.0,0.03654362]
[1765972570815,0.001,87158.0,87157.0,0.11146362]
[1765972572142,0.001,87158.0,87157.0,0.15877362]
[1765972572680,0.001,87158.0,87157.0,0.00072362]
[1765972574824,2.0,87163.0,87157.0,0.00072362]
[1765972574969,2.0,87159.0,87154.0,0.09308]
[1765972575174,2.0,87159.0,87158.0,0.11074]
[1765972575373,2.0,87163.0,87158.0,0.03582]
[1765972576086,2.0,87162.0,87158.0,0.03582]
[1765972576516,2.0,87163.0,87158.0,0.03582]
[1765972576878,2.0,87162.0,87158.0,0.03582]
[1765972577863,2.0,87161.0,87158.0,0.03582]
[1765972579368,0.07468,87157.0,87154.0,0.01816]
[1765972579553,2.0,87156.0,87152.0,0.01816]
[1765972580156,2.0,87156.0,87152.0,0.09308]
[1765972580575,2.0,87156.0,87155.0,0.00078656]
[1765972581222,2.2907,87156.0,87155.0,0.00078656]
[1765972586874,2.30147008,87156.0,87155.0,0.00078656]
[1765972588907,2.30147008,87156.0,87155.0,0.07570656]
[1765972589270,2.30147008,87156.0,87155.0,0.00078656]
[1765972590126,2.42248008,87156.0,87155.0,0.00078656]
[1765972591376,2.42348008,87156.0,87155.0,0.00078656]
[1765972592246,2.42448008,87156.0,87155.0,0.00078656]
[1765972593500,2.87038711,87156.0,87155.0,0.00078656]
[1765972593660,2.0,87148.0,87141.0,0.03582]
[1765972594008,2.0,87146.0,87139.0,0.01816]
[1765972594304,2.0,87146.0,87139.0,0.07549027]
[1765972594452,2.0,87146.0,87139.0,0.09211]
[1765972594653,2.0,87146.0,87145.0,0.00031471]
[1765972596126,2.42223101,87146.0,87145.0,0.00031471]
[1765972596528,2.34929101,87146.0,87145.0,0.00031471]
[1765972597009,2.30147101,87146.0,87145.0,0.00031471]
[1765972598114,2.30247101,87146.0,87145.0,0.00031471]
[1765972598312,2.2927,87146.0,87145.0,0.00031471]
[1765972607023,2.2927,87146.0,87145.0,0.15441471]
[1765972609162,2.2927,87146.0,87145.0,0.08046471]
[1765972609569,2.002,87146.0,87145.0,0.15441471]
[1765972609922,2.002,87146.0,87145.0,0.26941717]
[1765972610279,2.002,87146.0,87145.0,0.15441471]
[1765972610640,2.002,87146.0,87145.0,0.26941717]
[1765972611727,0.002,87146.0,87145.0,0.30157089]
[1765972611855,0.002,87146.0,87145.0,0.26941717]
[1765972613451,0.001,87146.0,87145.0,0.26941717]
[1765972613768,0.33450214,87155.0,87154.0,0.10791]
[1765972613966,2.0,87157.0,87154.0,0.10791]
[1765972614194,0.2907,87156.0,87154.0,0.10791]
[1765972615082,0.001,87155.0,87154.0,0.10791]
[1765972615787,0.001,87155.0,87154.0,0.15449]
[1765972616534,0.00299997,87160.0,87154.0,0.15449]
[1765972616728,0.2907,87156.0,87154.0,0.15449]
[1765972616966,0.2927,87156.0,87154.0,0.15449]
[1765972617170,0.2927,87156.0,87154.0,0.08054]
[1765972617568,0.2927,87156.0,87154.0,0.1521]
[1765972617967,0.001,87155.0,87154.0,0.1521]
[1765972618156,0.002,87156.0,87154.0,0.1521]
[1765972618585,0.004,87156.0,87155.0,0.07156]
[1765972619388,0.00367659,87156.0,87147.0,0.00025176]
[1765972619602,0.00367659,87156.0,87155.0,0.11814]
[1765972620026,2.29169999,87160.0,87159.0,0.10794]
[1765972620230,2.30246096,87160.0,87159.0,0.10694]
[1765972620666,2.30246096,87160.0,87159.0,0.15352]
[1765972620980,2.30246096,87160.0,87159.0,0.15152]
[1765972620981,2.29169999,87160.0,87159.0,0.15152]
[1765972621462,2.29369999,87160.0,87159.0,0.15152]
[1765972621615,2.29369999,87160.0,87159.0,0.07896]
[1765972622452,2.29369999,87160.0,87155.0,0.11500246]
[1765972622453,0.2907,87159.0,87155.0,0.11500246]
[1765972622655,0.2907,87159.0,87133.0,0.01076111]
[1765972622656,0.07415,87155.0,87144.0,0.11500246]
[1765972622888,2.43325,87148.0,87134.0,0.03638]
[1765972623056,2.43486287,87148.0,87134.0,0.03638]
[1765972623340,2.43486287,87148.0,87138.0,0.01816]
[1765972623760,2.31130287,87148.0,87140.0,0.07156]
[1765972624753,2.36087287,87148.0,87139.0,0.03638]
[1765972625187,2.36287287,87148.0,87139.0,0.03638]
[1765972626303,2.43394287,87148.0,87139.0,0.03638]
[1765972626730,2.4447043,87148.0,87137.0,0.01816]
[1765972626942,2.72802698,87148.0,87147.0,1.76e-06]
[1765972627174,2.74618698,87148.0,87147.0,1.76e-06]
[1765972629913,2.52155635,87148.0,87147.0,1.76e-06]
[1765972630318,2.43649698,87148.0,87147.0,1.76e-06]
[1765972630615,2.78091178,87148.0,87147.0,1.76e-06]
[1765972631630,2.66599163,87148.0,87147.0,1.76e-06]
[1765972631984,3.28049081,87148.0,87147.0,1.76e-06]
[1765972632688,3.27849081,87148.0,87147.0,1.76e-06]
[1765972633302,3.27949081,87148.0,87147.0,1.76e-06]
[1765972634796,3.24199069,87148.0,87147.0,1.76e-06]
[1765972635420,3.21720288,87148.0,87147.0,1.76e-06]
[1765972636038,3.24615672,87148.0,87147.0,1.76e-06]
[1765972639359,3.14958401,87148.0,87147.0,1.76e-06]
[1765972639971,3.1743461,87148.0,87147.0,1.76e-06]
[1765972643240,3.1743461,87148.0,87135.0,0.00043897]
[1765972643241,2.66131625,87136.0,87135.0,7.3e-07]
[1765972643443,2.95750016,87136.0,87135.0,7.3e-07]
[1765972643607,3.31626094,87136.0,87135.0,7.3e-07]
[1765972643812,3.35078665,87136.0,87135.0,7.3e-07]
[1765972644438,3.43991003,87136.0,87135.0,7.3e-07]
[1765972644700,3.44091003,87136.0,87135.0,7.3e-07]
[1765972645682,3.43791003,87136.0,87135.0,7.3e-07]
[1765972646257,3.44491003,87136.0,87135.0,7.3e-07]
[1765972646469,3.35778665,87136.0,87135.0,7.3e-07]
[1765972647846,0.02381,87107.0,87098.0,0.02229073]
[1765972648024,2.0,87106.0,87098.0,0.02229073]
[1765972649297,2.0,87106.0,87098.0,0.02329073]
[1765972649729,2.0,87106.0,87105.0,0.00132242]
[1765972650811,2.0,87106.0,87105.0,0.00232242]
[1765972650957,2.0,87106.0,87105.0,0.12283242]
[1765972651561,2.0,87106.0,87105.0,0.05047242]
[1765972651761,2.0,87106.0,87105.0,0.00232242]
[1765972654324,2.1234,87106.0,87105.0,0.00232242]
[1765972654531,2.12501287,87106.0,87105.0,0.00232242]
[1765972654791,2.53117365,87106.0,87105.0,0.00232242]
[1765972654996,2.41571287,87106.0,87105.0,0.00232242]
[1765972656286,2.29231287,87106.0,87105.0,0.00232242]
[1765972662963,2.30304941,87106.0,87105.0,0.00232242]
[1765972663930,2.42444941,87106.0,87105.0,0.00232242]
[1765972666169,2.69407739,87106.0,87105.0,0.00232242]
[1765972666617,2.57939224,87106.0,87105.0,0.00232242]
[1765972666820,2.39154402,87106.0,87105.0,0.00232242]
[1765972667027,2.27662387,87106.0,87105.0,0.00232242]
[1765972667248,2.12283387,87106.0,87105.0,0.00232242]
[1765972667876,2.12283387,87106.0,87105.0,0.00132242]
[1765972668080,2.12283387,87106.0,87105.0,0.04635242]
[1765972668326,2.12283387,87106.0,87105.0,0.11588242]
[1765972668527,2.12183387,87106.0,87105.0,0.00132242]
[1765972668727,2.12183387,87106.0,87105.0,0.00232242]
[1765972671648,2.16840387,87106.0,87105.0,0.00232242]
[1765972672546,2.12183387,87106.0,87105.0,0.00232242]
[1765972673330,2.14665496,87106.0,87105.0,0.00232242]
[1765972673537,2.28656637,87106.0,87105.0,2.42e-06]
[1765972673719,2.26557467,87106.0,87105.0,2.42e-06]
[1765972674109,2.19348467,87106.0,87105.0,2.42e-06]
[1765972675026,2.12183387,87106.0,87105.0,2.42e-06]
[1765972675870,2.12183387,87106.0,87105.0,0.06941242]
[1765972676669,2.12183387,87106.0,87105.0,0.11907242]
[1765972677052,1.829521,87106.0,87105.0,0.11907242]
[1765972679278,1.81878446,87106.0,87105.0,0.11907242]
[1765972679904,1.62924452,87106.0,87105.0,2.42e-06]
[1765972680110,9.963e-05,87107.0,87106.0,0.11907]
[1765972680286,9.963e-05,87107.0,87106.0,0.25703299]
[1765972680486,9.963e-05,87107.0,87106.0,0.26348]
[1765972681251,9.963e-05,87107.0,87106.0,0.23407246]
[1765972681451,9.963e-05,87107.0,87106.0,0.23507246]
[1765972681585,9.963e-05,87107.0,87106.0,0.12007]
[1765972681786,9.963e-05,87107.0,87106.0,0.13727]
[1765972682594,9.963e-05,87107.0,87106.0,0.19670015]
[1765972682792,9.963e-05,87107.0,87106.0,0.2223703]
[1765972683320,9.963e-05,87107.0,87106.0,0.27994261]
[1765972684037,9.963e-05,87107.0,87106.0,0.28094261]
[1765972684338,9.963e-05,87107.0,87106.0,0.27894261]
[1765972684488,9.963e-05,87107.0,87106.0,0.27794261]
[1765972684684,9.963e-05,87107.0,87106.0,0.28094261]
[1765972684925,9.963e-05,87107.0,87106.0,0.51354791]
[1765972685122,9.963e-05,87107.0,87106.0,0.80424791]
[1765972685322,9.963e-05,87107.0,87106.0,0.8542663]
[1765972685936,9.963e-05,87107.0,87106.0,0.8512663]
[1765972686376,9.963e-05,87107.0,87106.0,0.8552663]
[1765972687178,9.963e-05,87107.0,87106.0,0.8522663]
[1765972687329,9.963e-05,87107.0,87106.0,0.8552663]
[1765972688771,9.963e-05,87107.0,87106.0,0.8522663]
[1765972689289,9.963e-05,87107.0,87106.0,0.8532663]
[1765972689496,9.963e-05,87107.0,87106.0,0.8582663]
[1765972689984,9.963e-05,87107.0,87106.0,0.91995651]
[1765972690191,9.963e-05,87107.0,87106.0,0.8582663]
[1765972690705,9.963e-05,87107.0,87106.0,0.8904663]
[1765972690910,9.963e-05,87107.0,87106.0,0.95215651]
[1765972691151,9.963e-05,87107.0,87106.0,0.8904663]
[1765972701380,9.963e-05,87107.0,87106.0,0.82224791]
[1765972701584,9.963e-05,87107.0,87106.0,0.84040791]
[1765972710533,9.963e-05,87107.0,87106.0,0.90206762]
[1765972710989,9.963e-05,87107.0,87106.0,0.84040791]
[1765972721980,9.963e-05,87107.0,87106.0,0.87790791]
[1765972722188,9.963e-05,87107.0,87106.0,0.96016777]
[1765972724097,9.963e-05,87107.0,87106.0,0.87790791]
[1765972725214,9.963e-05,87107.0,87106.0,0.9279263]
[1765972725825,0.00099999,87140.0,87139.0,0.26543246]
[1765972725989,0.01077536,87148.0,87139.0,0.26543246]
[1765972725990,2.01077536,87148.0,87147.0,0.26872246]
[1765972726189,2.0111524,87148.0,87147.0,0.26872246]
[1765972726413,2.00037704,87148.0,87147.0,0.26872246]
[1765972726617,2.00198991,87148.0,87147.0,0.15372]
[1765972727031,2.00198991,87148.0,87147.0,0.26872246]
[1765972727238,2.00298991,87148.0,87147.0,0.26872246]
[1765972730018,0.00298991,87148.0,87147.0,0.26872246]
[1765972735753,0.00137704,87148.0,87147.0,0.26872246]
[1765972736803,0.00037704,87148.0,87147.0,0.18613225]
[1765972737010,0.00037704,87148.0,87147.0,0.23399999]
[1765972737209,0.00137704,87148.0,87147.0,0.23399999]
[1765972739942,0.00037704,87148.0,87147.0,0.23399999]
[1765972740410,0.00037704,87148.0,87147.0,0.23499999]
[1765972740763,0.00037704,87148.0,87147.0,0.27941931]
[1765972740962,0.00037704,87148.0,87147.0,0.25646959]
[1765972742176,0.00037704,87148.0,87147.0,0.15472]
[1765972742425,0.00037704,87148.0,87147.0,0.25315999]
[1765972742663,0.00037704,87148.0,87147.0,0.21205027]
[1765972742835,0.00037704,87148.0,87147.0,0.25315999]
[1765972743951,0.00037704,87148.0,87147.0,0.23021027]
[1765972744153,0.00037704,87148.0,87147.0,0.26155908]
[1765972746091,0.00037704,87148.0,87147.0,0.24339908]
[1765972746292,0.00037704,87148.0,87147.0,0.26155908]
[1765972746494,0.00037704,87148.0,87147.0,0.31923127]
[1765972749836,0.00037704,87148.0,87147.0,0.30107127]
[1765972750065,0.00037704,87148.0,87147.0,0.31923127]
[1765972750593,0.00037704,87148.0,87147.0,0.28788246]
[1765972751201,0.00037704,87148.0,87147.0,0.26972246]
[1765972751399,0.00037704,87148.0,87147.0,0.28788246]
[1765972751599,0.00037704,87148.0,87147.0,0.001]
[1765972751799,0.00037704,87148.0,87147.0,0.01916]
[1765972752804,0.00037704,87148.0,87147.0,0.001]
[1765972752805,0.00198991,87148.0,87147.0,0.001]
[1765972759209,2.0,87158.0,87147.0,0.00261287]
[1765972759411,2.0,87158.0,87147.0,0.00272553]
[1765972760049,2.0,87158.0,87147.0,0.00172553]
[1765972760264,2.0,87158.0,87151.0,0.15028246]
[1765972760457,2.0,87157.0,87151.0,0.15028246]
[1765972760685,2.0,87157.0,87151.0,0.03528]
[1765972761458,2.0,87157.0,87151.0,0.15028246]
[1765972761833,2.0,87157.0,87156.0,0.04953]
[1765972762066,2.0,87157.0,87156.0,0.12128]
[1765972762274,2.001,87157.0,87156.0,0.12128]
[1765972763077,2.0,87157.0,87156.0,0.12128]
[1765972763302,2.0,87158.0,87156.0,0.12128]
[1765972763512,2.2907,87158.0,87157.0,0.07175]
[1765972763743,2.2907,87158.0,87157.0,0.07075]
[1765972764150,2.0,87157.0,87156.0,0.04953]
[1765972764494,2.001,87157.0,87156.0,0.04953]
[1765972765111,2.0,87157.0,87156.0,0.04953]
[1765972765966,2.001,87157.0,87153.0,0.12908027]
[1765972766164,2.0,87156.0,87153.0,0.05733027]
[1765972766375,2.0,87156.0,87154.0,0.07175]
[1765972767369,2.0,87157.0,87154.0,0.07175]
[1765972767658,2.0,87156.0,87154.0,0.07175]
[1765972767980,2.0,87157.0,87154.0,0.07175]
[1765972768351,2.0,87155.0,87154.0,0.12128]
[1765972769217,2.0,87157.0,87155.0,0.07175]
[1765972770479,2.001,87157.0,87155.0,0.07175]
[1765972770650,2.0,87156.0,87155.0,0.07175]
[1765972770798,2.0,87157.0,87155.0,0.07175]
[1765972770997,2.001,87157.0,87155.0,0.07175]
[1765972771215,2.0,87156.0,87155.0,0.07175]
[1765972772425,2.0,87157.0,87155.0,0.07175]
[1765972773907,2.001,87156.0,87155.0,0.23628246]
[1765972774027,1.77505307,87157.0,87155.0,0.07175]
[1765972774227,1.77605307,87157.0,87156.0,0.11500246]
[1765972774839,1.77605307,87157.0,87156.0,0.18480246]
[1765972775177,1.77505307,87157.0,87156.0,0.18480246]
[1765972775375,1.77605307,87157.0,87156.0,0.18480246]
[1765972776719,1.77605307,87157.0,87156.0,0.22040246]
[1765972779281,1.78682831,87157.0,87156.0,0.22040246]
[1765972780845,1.78682831,87157.0,87156.0,0.1054]
[1765972781393,1.78682831,87157.0,87156.0,0.0356]
[1765972782326,1.78682831,87157.0,87156.0,0.1054]
[1765972783912,1.78682831,87157.0,87156.0,0.0356]
[1765972790197,1.77505307,87156.0,87154.0,0.0698]
[1765972790618,1.77505307,87156.0,87147.0,0.00011266]
[1765972790828,1.77505307,87156.0,87151.0,0.01816]
[1765972791032,1.77505307,87156.0,87149.0,0.01816]
[1765972791204,0.33549801,87157.0,87149.0,0.01816]
[1765972791205,1.77505307,87154.0,87149.0,0.01816]
[1765972791406,1.77505307,87156.0,87149.0,0.01816]
[1765972791613,1.77505307,87154.0,87149.0,0.01816]
[1765972791998,1.77505307,87154.0,87147.0,0.00011266]
[1765972791999,0.01077962,87153.0,87147.0,0.00011266]
[1765972792243,1.77505307,87152.0,87147.0,0.01827266]
[1765972792443,0.24194801,87156.0,87147.0,0.01827266]
[1765972792444,1.77505307,87150.0,87147.0,0.01827266]
[1765972792646,1.77505307,87155.0,87147.0,0.01827266]
[1765972792852,1.77505307,87153.0,87147.0,0.01827266]
[1765972793057,1.77505307,87151.0,87147.0,0.01827266]
[1765972793288,1.77505307,87155.0,87147.0,0.01827266]
[1765972793484,1.77505307,87153.0,87147.0,0.01827266]
[1765972793682,1.77505307,87151.0,87147.0,0.01827266]
[1765972793883,1.77505307,87155.0,87147.0,0.01827266]
[1765972794085,1.77505307,87153.0,87147.0,0.01827266]
[1765972794325,1.77505307,87151.0,87147.0,0.01827266]
[1765972794502,1.77505307,87156.0,87147.0,0.01827266]
[1765972794676,0.01077475,87155.0,87147.0,0.01827266]
[1765972794877,1.77505307,87150.0,87147.0,0.01827266]
[1765972796128,1.77505307,87155.0,87147.0,0.01827266]
[1765972796325,1.77505307,87153.0,87147.0,0.01827266]
[1765972796536,1.77505307,87151.0,87147.0,0.01827266]
[1765972796730,1.77505307,87155.0,87147.0,0.01827266]
[1765972797012,1.77505307,87153.0,87147.0,0.01827266]
[1765972797245,1.77505307,87151.0,87147.0,0.00011266]
[1765972797434,1.77505307,87155.0,87147.0,0.00011266]
[1765972797676,1.77505307,87152.0,87147.0,0.00011266]
[1765972799087,1.77505307,87152.0,87147.0,0.07352266]
[1765972799292,1.77505307,87152.0,87151.0,0.12219]
[1765972799494,1.77505307,87152.0,87151.0,0.17952027]
[1765972799703,1.77505307,87157.0,87152.0,0.07341]
[1765972799873,1.77605307,87155.0,87154.0,0.12219]
[1765972800076,1.77605307,87155.0,87154.0,0.04878]
[1765972800385,1.77505307,87157.0,87150.0,0.18841246]
[1765972800584,1.77605307,87152.0,87151.0,0.12219]
[1765972800980,1.77505307,87157.0,87151.0,0.12219]
[1765972801203,1.77605307,87155.0,87151.0,0.12219]
[1765972801413,1.77505307,87154.0,87152.0,0.07341]
[1765972801586,1.77505307,87157.0,87152.0,0.07341]
[1765972801765,1.77505307,87155.0,87152.0,0.07341]
[1765972801969,1.77505307,87157.0,87152.0,0.07341]
[1765972802171,1.77505307,87155.0,87152.0,0.07341]
[1765972802394,1.77505307,87156.0,87152.0,0.07341]
[1765972802968,1.77505307,87156.0,87150.0,0.11500246]
[1765972803433,1.77505307,87157.0,87150.0,0.11500246]
[1765972803640,1.77505307,87155.0,87147.0,0.00172553]
[1765972804027,1.77505307,87156.0,87147.0,0.00172553]
[1765972804224,1.77505307,87155.0,87147.0,0.00172553]
[1765972804426,1.77505307,87156.0,87147.0,0.00172553]
[1765972804834,1.77505307,87154.0,87147.0,0.00172553]
[1765972806113,0.33459563,87157.0,87147.0,0.00172553]
[1765972806114,1.77505307,87156.0,87147.0,0.00172553]
[1765972806332,1.77605307,87156.0,87148.0,0.01816]
[1765972806534,1.77505307,87155.0,87147.0,0.00172553]
[1765972806753,2.1096487,87157.0,87147.0,0.00172553]
[1765972806962,0.001,87154.0,87148.0,0.01816]
[1765972807181,1.77505307,87153.0,87148.0,0.09284]
[1765972807432,1.77505307,87157.0,87148.0,0.09284]
[1765972807727,1.77505307,87155.0,87149.0,0.07468]
[1765972808050,1.77505307,87157.0,87149.0,0.07468]
[1765972808185,1.77505307,87155.0,87149.0,0.07468]
[1765972808388,0.11492015,87170.0,87149.0,0.07468]
[1765972808389,0.00099999,87190.0,87170.0,0.01147183]
[1765972808594,0.0002,87194.0,87189.0,0.00161287]
[1765972808943,0.0002,87194.0,87193.0,0.11661533]
[1765972808944,0.00015987,87194.0,87193.0,0.11661533]
[1765972809111,0.00015987,87194.0,87193.0,0.13955295]
[1765972809314,0.00015987,87194.0,87193.0,0.13855295]
[1765972809514,0.00015987,87194.0,87193.0,0.11561533]
[1765972810183,0.00015987,87194.0,87193.0,0.11501485]
[1765972811044,0.00015987,87194.0,87193.0,0.13108595]
[1765972811987,0.00015987,87194.0,87193.0,0.11501485]
[1765972814627,0.00015987,87194.0,87180.0,0.33459563]
[1765972814628,0.00015987,87194.0,87184.0,0.11501485]
[1765972814629,0.0737,87188.0,87184.0,0.11501485]
[1765972814808,2.0737,87186.0,87185.0,0.01816]
[1765972815007,2.07531287,87186.0,87185.0,0.01816]
[1765972815209,2.12147287,87186.0,87185.0,0.01816]
[1765972815572,2.00161287,87186.0,87185.0,0.01816]
[1765972815964,0.00015987,87194.0,87185.0,0.02570903]
[1765972816205,0.00015987,87194.0,87193.0,0.11501485]
[1765972817025,0.00015987,87194.0,87193.0,0.13317485]
[1765972817238,0.00015987,87194.0,87193.0,0.11501485]
[1765972817438,0.00015987,87194.0,87193.0,0.13317485]
[1765972818614,0.00015987,87194.0,87193.0,0.11501485]
[1765972818823,0.00015987,87194.0,87193.0,0.13317485]
[1765972820713,0.00099999,87190.0,87182.0,0.00459848]
[1765972820879,0.00099999,87190.0,87160.0,0.33459563]
[1765972820880,0.0737,87186.0,87183.0,0.01816]
[1765972821222,2.0,87187.0,87183.0,0.01816]
[1765972821223,0.25099999,87200.0,87189.0,0.11501485]
[1765972821394,0.00099999,87200.0,87193.0,0.11501485]
[1765972821757,0.00099999,87200.0,87193.0,0.15611247]
[1765972821965,0.00199998,87200.0,87193.0,0.15611247]
[1765972822163,0.00344249,87194.0,87193.0,0.15611247]
[1765972822652,0.00344249,87194.0,87193.0,0.16071018]
[1765972823631,0.00344249,87194.0,87193.0,0.12061256]
[1765972823821,0.00344249,87194.0,87193.0,0.13877256]
[1765972824263,0.00344249,87194.0,87193.0,0.12061256]
[1765972824464,0.00344249,87194.0,87193.0,0.13877256]
[1765972824842,0.00344249,87194.0,87193.0,0.13977256]
[1765972825038,0.00344249,87194.0,87193.0,0.16271018]
[1765972826045,0.00344249,87194.0,87193.0,0.13977256]
[1765972827852,0.00344249,87194.0,87193.0,0.12161256]
[1765972828065,0.00344249,87194.0,87193.0,0.13977256]
[1765972828476,0.00344249,87194.0,87193.0,0.13999256]
[1765972829873,0.00344249,87194.0,87193.0,0.14010586]
[1765972832487,2.0,87209.0,87203.0,0.11501485]
[1765972832689,2.0,87209.0,87204.0,0.01816]
[1765972832845,0.00161287,87209.0,87203.0,0.11501485]
[1765972833050,0.00161287,87209.0,87205.0,0.01816]
[1765972833986,0.00261287,87209.0,87205.0,0.01816]
[1765972834189,0.00161287,87209.0,87205.0,0.01816]
[1765972834334,0.00161287,87209.0,87206.0,0.01816]
[1765972834537,0.07376287,87209.0,87207.0,0.01816]
[1765972834964,0.00261287,87209.0,87207.0,0.01816]
[1765972835734,0.00161287,87209.0,87207.0,0.01816]
[1765972836096,0.00261287,87209.0,87207.0,0.01816]
[1765972836287,0.00161287,87209.0,87194.0,0.0186]
[1765972836475,0.00161287,87209.0,87199.0,0.04603787]
[1765972836680,0.00261287,87209.0,87199.0,0.04603787]
[1765972837063,0.00261287,87209.0,87195.0,0.01816]
[1765972837263,0.00261287,87209.0,87202.0,0.11502169]
[1765972837460,0.00161287,87209.0,87199.0,0.04603787]
[1765972837699,0.00161287,87209.0,87208.0,0.0558]
[1765972838017,0.00161287,87209.0,87208.0,0.11313027]
[1765972838845,0.00261287,87209.0,87208.0,0.15033027]
[1765972839044,0.00261287,87209.0,87208.0,0.093]
[1765972839217,0.00161287,87209.0,87208.0,0.093]
[1765972839418,0.0107307,87218.0,87215.0,0.11502048]
[1765972839419,2.2907,87216.0,87215.0,0.11502048]
[1765972839619,2.3014307,87216.0,87215.0,0.11502048]
[1765972839828,2.3014307,87216.0,87215.0,0.15222048]
[1765972840226,0.2907,87229.0,87215.0,0.0372]
[1765972840429,2.0,87227.0,87217.0,0.0372]
[1765972840646,0.2907,87225.0,87224.0,0.0186]
[1765972840821,2.30144655,87225.0,87224.0,0.13361684]
[1765972841467,2.30144655,87225.0,87224.0,0.0558]
[1765972841651,0.01074655,87225.0,87224.0,0.20801684]
[1765972841851,0.001,87227.0,87226.0,0.18941684]
[1765972842093,0.001,87227.0,87226.0,0.20757684]
[1765972842472,0.001,87227.0,87226.0,0.11748187]
[1765972842673,0.001,87227.0,87226.0,0.23149871]
[1765972842925,0.001,87227.0,87226.0,0.20657684]
[1765972843260,0.002,87227.0,87226.0,0.20657684]
[1765972843472,0.001,87227.0,87226.0,0.20657684]
[1765972843676,0.0002,87231.0,87230.0,0.15121684]
[1765972843869,0.0002,87231.0,87230.0,0.15021684]
[1765972844069,0.0013629,87231.0,87230.0,0.15021684]
[1765972845497,0.0023629,87231.0,87230.0,0.15021684]
[1765972846928,0.0023629,87231.0,87224.0,0.00011266]
[1765972846929,0.12048,87225.0,87224.0,0.00011266]
[1765972847144,2.13282971,87225.0,87224.0,0.00011266]
[1765972847346,2.1338041,87225.0,87224.0,0.00011266]
[1765972850519,2.0626541,87225.0,87224.0,0.00011266]
[1765972851462,0.00097439,87225.0,87224.0,0.1855295]
[1765972851879,0.00097439,87225.0,87224.0,0.00011266]
[1765972852087,0.00097439,87225.0,87224.0,0.03531266]
[1765972852260,0.00097439,87225.0,87224.0,0.1855295]
[1765972854522,2.0,87238.0,87237.0,0.11501684]
[1765972854722,2.0,87244.0,87235.0,0.01816]
[1765972854944,0.1,87256.0,87235.0,0.01816]
[1765972854945,0.1,87256.0,87244.0,0.18541684]
[1765972855148,0.1,87256.0,87244.0,0.20834105]
[1765972856510,0.1,87256.0,87244.0,0.20934105]
[1765972856748,0.1,87256.0,87244.0,0.20834105]
[1765972857794,0.1,87256.0,87244.0,0.20934105]
[1765972861055,0.0367,87254.0,87244.0,0.13517684]
[1765972861275,0.07362,87252.0,87244.0,0.02016]
[1765972861489,0.00082838,87245.0,87244.0,0.02016]
[1765972862065,0.00082838,87245.0,87244.0,0.08856]
[1765972862292,0.00082838,87245.0,87244.0,0.21472545]
[1765972863269,0.00082838,87245.0,87244.0,0.16937684]
[1765972863468,0.00082838,87245.0,87244.0,0.20357684]
[1765972866815,0.00082838,87245.0,87244.0,0.22650105]
[1765972867018,0.00082838,87245.0,87244.0,0.20357684]
[1765972867231,2.12033125,87245.0,87244.0,0.002]
[1765972867426,2.11789,87225.0,87217.0,0.11501684]
[1765972867643,2.11950287,87225.0,87213.0,0.05236]
[1765972868088,2.11950287,87225.0,87213.0,0.0342]
[1765972868286,2.11950287,87225.0,87223.0,0.01816]
[1765972869052,2.11938822,87225.0,87222.0,0.01816]
[1765972869254,2.11938822,87225.0,87224.0,0.00111266]
[1765972869393,2.11938822,87225.0,87224.0,0.00011266]
[1765972869994,2.12038822,87225.0,87224.0,0.01827266]
[1765972870443,2.00261287,87225.0,87224.0,0.05259266]
[1765972871472,0.001,87225.0,87224.0,0.08691266]
[1765972871673,0.001,87225.0,87224.0,0.2019295]
[1765972871881,0.00025138,87233.0,87232.0,0.11501684]
[1765972872102,0.00025138,87233.0,87224.0,0.05259266]
[1765972872103,2.00025138,87233.0,87224.0,0.05259266]
[1765972872311,2.0,87232.0,87226.0,0.11501684]
[1765972872524,1.78725804,87232.0,87231.0,0.11501684]
[1765972872727,2.0,87232.0,87224.0,0.01827266]
[1765972873692,2.0,87232.0,87227.0,0.11501684]
[1765972873885,2.001,87232.0,87224.0,0.01827266]
[1765972874049,2.0,87231.0,87227.0,0.11501684]
[1765972875242,0.00025138,87233.0,87232.0,0.06864]
[1765972875435,0.00025138,87233.0,87232.0,0.18365684]
[1765972875638,0.00025138,87233.0,87232.0,0.18265684]
[1765972876600,0.00025138,87233.0,87232.0,0.18365684]
[1765972877400,0.00025138,87233.0,87232.0,0.06864]
[1765972877644,0.00025138,87233.0,87232.0,0.12597027]
[1765972878308,0.00025138,87233.0,87232.0,0.18365684]
[1765972878504,0.00025138,87233.0,87232.0,0.06864]
[1765972878728,0.00025138,87233.0,87232.0,0.18365684]
[1765972878930,0.00025138,87233.0,87232.0,0.2065842]
[1765972879138,0.00025138,87233.0,87232.0,0.18365684]
[1765972879925,0.00025138,87233.0,87232.0,0.18465684]
[1765972880126,0.00025138,87233.0,87232.0,0.18665684]
[1765972880578,0.00025138,87233.0,87232.0,0.20481684]
[1765972882028,0.00025138,87233.0,87232.0,0.2277442]
[1765972882226,0.00025138,87233.0,87232.0,0.20481684]
[1765972882451,0.00025138,87233.0,87232.0,0.18665684]
[1765972882667,0.00025138,87233.0,87232.0,0.20481684]
[1765972886627,0.00025138,87233.0,87232.0,0.11901684]
[1765972887256,0.00025138,87233.0,87232.0,0.13717684]
[1765972887664,0.00025138,87233.0,87232.0,0.13517684]
[1765972888093,0.00025138,87233.0,87232.0,0.16849684]
[1765972888477,0.00025138,87233.0,87232.0,0.13417684]